fUSD/lending_fUSD_20250105
["ID","MTS","AMOUNT","RATE_DAILY","PERIOD"]
[347713230,1736077855461,-4518.67,8.767e-05,2]
[347713231,1736077855471,-500.0,8.767e-05,2]
[347713232,1736077855482,-1188.36,8.767e-05,2]
[347713233,1736077855492,-1113.222451,8.767e-05,2]
[347713234,1736077855502,-500.0,8.767e-05,2]
[347713235,1736077855512,-500.0,8.767e-05,2]
[347713236,1736077855524,-6256.28,8.767e-05,2]
[347713237,1736077855535,-1501.17,8.767e-05,2]
[347713238,1736077855545,-12614.89,8.767e-05,2]
[347713239,1736077855556,-500.0,8.767e-05,2]
[347713240,1736077855569,-500.0,8.767e-05,2]
[347713241,1736077855868,-1877.08,8.767e-05,2]
[347713242,1736077855881,-500.0,8.767e-05,2]
[347713243,1736077855891,-500.0,8.767e-05,2]
[347713244,1736077855902,-500.0,8.767e-05,2]
[347713245,1736077855912,-500.0,8.767e-05,2]
[347713246,1736077855923,-5948.84,8.767e-05,2]
[347713247,1736077855934,-500.0,8.767e-05,2]
[347713248,1736077855943,-500.0,8.767e-05,2]
[347713249,1736077855954,-1336.8,8.767e-05,2]
[347713250,1736077855963,-500.0,8.767e-05,2]
[347713251,1736077855974,-500.0,8.767e-05,2]
[347713252,1736077855984,-500.0,8.767e-05,2]
[347713253,1736077855994,-500.0,8.767e-05,2]
[347713254,1736077856005,-500.0,8.767e-05,2]
[347713255,1736077856016,-279.98027104,8.767e-05,2]
[347713256,1736077856028,-500.0,8.767e-05,2]
[347713257,1736077856038,-500.0,8.767e-05,2]
[347713258,1736077856047,-587.66,8.767e-05,2]
[347713259,1736077856058,-656.54,8.767e-05,2]
[347713260,1736077856068,-16452.68,8.767e-05,2]
[347713261,1736077856078,-500.0,8.767e-05,2]
[347713262,1736077856089,-500.0,8.767e-05,2]
[347713263,1736077856099,-656.81,8.767e-05,2]
[347713264,1736077856109,-500.0,8.767e-05,2]
[347713265,1736077856119,-2520.72,8.767e-05,2]
[347713266,1736077856130,-1330.53,8.767e-05,2]
[347713267,1736077856139,-500.0,8.767e-05,2]
[347713268,1736077856149,-500.0,8.767e-05,2]
[347713269,1736077856159,-500.0,8.767e-05,2]
[347713270,1736077856168,-500.0,8.767e-05,2]
[347713271,1736077856178,-579.66,8.767e-05,2]
[347713272,1736077856187,-500.0,8.767e-05,2]
[347713273,1736077856196,-500.0,8.767e-05,2]
[347713274,1736077856207,-1361.37,8.767e-05,2]
[347713275,1736077856218,-1152.65,8.767e-05,2]
[347713276,1736077856228,-500.0,8.767e-05,2]
[347713277,1736077856237,-1619.18,8.767e-05,2]
[347713278,1736077856247,-500.0,8.767e-05,2]
[347713279,1736077856256,-500.0,8.767e-05,2]
[347713280,1736077856266,-1628.83,8.767e-05,2]
[347713281,1736077856277,-1774.99,8.767e-05,2]
[347713282,1736077856286,-1073.36,8.767e-05,2]
[347713283,1736077856295,-500.0,8.767e-05,2]
[347713284,1736077856305,-779.56,8.767e-05,2]
[347713285,1736077856314,-2695.05,8.767e-05,2]
[347713286,1736077856323,-500.0,8.767e-05,2]
[347713287,1736077856333,-640.54969594,8.767e-05,2]
[347713288,1736077856343,-272.77,8.767e-05,2]
[347713289,1736077856352,-1125.17,8.767e-05,2]
[347713290,1736077856361,-500.0,8.767e-05,2]
[347713291,1736077856370,-2863.65,8.767e-05,2]
[347713292,1736077856379,-763.52,8.767e-05,2]
[347713293,1736077856389,-381.10321485,8.767e-05,2]
[347713294,1736077856399,-500.0,8.767e-05,2]
[347713295,1736077856408,-1594.61,8.767e-05,2]
[347713296,1736077856419,-1889.76,8.767e-05,2]
[347713297,1736077856428,-500.0,8.767e-05,2]
[347713298,1736077856438,-1696.48,8.767e-05,2]
[347713299,1736077856447,-500.0,8.767e-05,2]
[347713300,1736077856457,-500.0,8.767e-05,2]
[347713301,1736077856466,-2621.36,8.767e-05,2]
[347713302,1736077856476,-500.0,8.767e-05,2]
[347713303,1736077856485,-1366.06,8.767e-05,2]
[347713304,1736077856494,-500.0,8.767e-05,2]
[347713305,1736077856504,-500.0,8.767e-05,2]
[347713306,1736077856513,-1255.03,8.767e-05,2]
[347713307,1736077856523,-500.0,8.767e-05,2]
[347713308,1736077856532,-1597.01,8.767e-05,2]
[347713309,1736077856543,-500.0,8.767e-05,2]
[347713310,1736077856552,-501.17,8.767e-05,2]
[347713311,1736077856562,-500.0,8.767e-05,2]
[347713312,1736077856571,-500.0,8.767e-05,2]
[347713313,1736077856581,-4702.44,8.767e-05,2]
[347713314,1736077856591,-580.40352711,8.767e-05,2]
[347713315,1736077856600,-500.0,8.767e-05,2]
[347713316,1736077856610,-500.0,8.767e-05,2]
[347713317,1736077856619,-500.0,8.767e-05,2]
[347713318,1736077856628,-500.0,8.767e-05,2]
[347713319,1736077856638,-500.0,8.767e-05,2]
[347713320,1736077856648,-500.0,8.767e-05,2]
[347713321,1736077856658,-428.81745065,8.767e-05,2]
[347713322,1736077856667,-500.0,8.767e-05,2]
[347713323,1736077856677,-500.0,8.767e-05,2]
[347713324,1736077856688,-1134.87,8.767e-05,2]
[347713325,1736077856699,-4016.18,8.767e-05,2]
[347713326,1736077856708,-1438.49,8.767e-05,2]
[347713327,1736077856718,-500.0,8.767e-05,2]
[347713328,1736077856728,-500.0,8.767e-05,2]
[347713329,1736077856738,-1007.93,8.767e-05,2]
[347713330,1736077856747,-5853.8,8.767e-05,2]
[347713331,1736077856757,-1188.37,8.767e-05,2]
[347713332,1736077856766,-500.0,8.767e-05,2]
[347713333,1736077856775,-799.75,8.767e-05,2]
[347713334,1736077856786,-500.0,8.767e-05,2]
[347713335,1736077856795,-298.094105,8.767e-05,2]
[347713336,1736077856805,-1191.39,8.767e-05,2]
[347713337,1736077856814,-500.0,8.767e-05,2]
[347713338,1736077856823,-500.0,8.767e-05,2]
[347713339,1736077856834,-500.0,8.767e-05,2]
[347713340,1736077856843,-500.0,8.767e-05,2]
[347713341,1736077856852,-500.0,8.767e-05,2]
[347713342,1736077856862,-743.67,8.767e-05,2]
[347713343,1736077856871,-500.0,8.767e-05,2]
[347713344,1736077856881,-624.57,8.767e-05,2]
[347713345,1736077856890,-500.0,8.767e-05,2]
[347713346,1736077856900,-10885.06,8.767e-05,2]
[347713347,1736077856909,-8164.25,8.767e-05,2]
[347713348,1736077856919,-500.0,8.767e-05,2]
[347713349,1736077856929,-500.0,8.767e-05,2]
[347713350,1736077856938,-2029.13,8.767e-05,2]
[347713351,1736077856947,-599.80502619,8.767e-05,2]
[347713352,1736077856957,-500.0,8.767e-05,2]
[347713353,1736077856966,-1294.01,8.767e-05,2]
[347713354,1736077856975,-826.38,8.767e-05,2]
[347713355,1736077856984,-500.0,8.767e-05,2]
[347713356,1736077856994,-847.41,8.767e-05,2]
[347713357,1736077857003,-500.0,8.767e-05,2]
[347713358,1736077857013,-500.0,8.767e-05,2]
[347713359,1736077857022,-1922.04,8.767e-05,2]
[347713360,1736077857031,-4178.12,8.767e-05,2]
[347713361,1736077857041,-1674.94,8.767e-05,2]
[347713362,1736077857049,-500.0,8.767e-05,2]
[347713363,1736077857058,-282.754514,8.767e-05,2]
[347713364,1736077857067,-500.0,8.767e-05,2]
[347713365,1736077857077,-500.0,8.767e-05,2]
[347713366,1736077857086,-297.65756419,8.767e-05,2]
[347713367,1736077857096,-614.12,8.767e-05,2]
[347713368,1736077857105,-500.0,8.767e-05,2]
[347713369,1736077857114,-500.0,8.767e-05,2]
[347713370,1736077857123,-500.0,8.767e-05,2]
[347713371,1736077857133,-2015.35,8.767e-05,2]
[347713372,1736077857142,-500.0,8.767e-05,2]
[347713373,1736077857151,-500.0,8.767e-05,2]
[347713374,1736077857161,-500.0,8.767e-05,2]
[347713375,1736077857170,-11657.42,8.767e-05,2]
[347713376,1736077857181,-2860.37,8.767e-05,2]
[347713377,1736077857190,-776.51,8.767e-05,2]
[347713378,1736077857200,-500.0,8.767e-05,2]
[347713379,1736077857209,-1055.64,8.767e-05,2]
[347713380,1736077857219,-1719.67,8.767e-05,2]
[347713381,1736077857228,-500.0,8.767e-05,2]
[347713382,1736077857237,-500.0,8.767e-05,2]
[347713383,1736077857247,-4243.83,8.767e-05,2]
[347713384,1736077857256,-500.0,8.767e-05,2]
[347713385,1736077857265,-6577.83,8.767e-05,2]
[347713386,1736077857274,-500.0,8.767e-05,2]
[347713387,1736077857283,-1904.42,8.767e-05,2]
[347713388,1736077857293,-712.42,8.767e-05,2]
[347713389,1736077857302,-4673.99,8.767e-05,2]
[347713390,1736077857312,-500.0,8.767e-05,2]
[347713391,1736077857321,-813.11,8.767e-05,2]
[347713392,1736077857330,-7032.4,8.767e-05,2]
[347713393,1736077857339,-911.49,8.767e-05,2]
[347713394,1736077857349,-500.0,8.767e-05,2]
[347713395,1736077857358,-4504.93,8.767e-05,2]
[347713396,1736077857368,-500.0,8.767e-05,2]
[347713397,1736077857377,-1698.03,8.767e-05,2]
[347713398,1736077857387,-1145.98,8.767e-05,2]
[347713399,1736077857396,-500.0,8.767e-05,2]
[347713400,1736077857406,-710.05,8.767e-05,2]
[347713401,1736077857416,-500.0,8.767e-05,2]
[347713402,1736077857425,-500.0,8.767e-05,2]
[347713403,1736077857435,-500.0,8.767e-05,2]
[347713404,1736077857445,-500.0,8.767e-05,2]
[347713405,1736077857454,-773.58,8.767e-05,2]
[347713406,1736077857465,-500.0,8.767e-05,2]
[347713407,1736077857474,-892.05,8.767e-05,2]
[347713408,1736077857484,-500.0,8.767e-05,2]
[347713409,1736077857493,-500.0,8.767e-05,2]
[347713410,1736077857503,-500.0,8.767e-05,2]
[347713411,1736077857514,-500.0,8.767e-05,2]
[347713412,1736077857523,-1067.33,8.767e-05,2]
[347713413,1736077857533,-1151.78,8.767e-05,2]
[347713414,1736077857542,-3036.51,8.767e-05,2]
[347713415,1736077857552,-220.87213055,8.767e-05,2]
[347713416,1736077857561,-2458.64,8.767e-05,2]
[347713417,1736077857570,-1718.34,8.767e-05,2]
[347713418,1736077857579,-1454.12,8.767e-05,2]
[347713419,1736077857589,-500.0,8.767e-05,2]
[347713420,1736077857598,-851.29,8.767e-05,2]
[347713421,1736077857607,-500.0,8.767e-05,2]
[347713422,1736077857616,-3993.07,8.767e-05,2]
[347713423,1736077857625,-500.0,8.767e-05,2]
[347713424,1736077857634,-500.0,8.767e-05,2]
[347713425,1736077857644,-500.0,8.767e-05,2]
[347713426,1736077857653,-2096.82,8.767e-05,2]
[347713427,1736077857662,-1089.35,8.767e-05,2]
[347713428,1736077857671,-500.0,8.767e-05,2]
[347713429,1736077857681,-892.7,8.767e-05,2]
[347713430,1736077857690,-500.0,8.767e-05,2]
[347713431,1736077857699,-1286.37,8.767e-05,2]
[347713432,1736077857709,-500.0,8.767e-05,2]
[347713433,1736077857718,-500.0,8.767e-05,2]
[347713434,1736077857727,-858.47,8.767e-05,2]
[347713435,1736077857736,-500.0,8.767e-05,2]
[347713436,1736077857746,-500.0,8.767e-05,2]
[347713437,1736077857755,-1752.2,8.767e-05,2]
[347713438,1736077857764,-1122.56,8.767e-05,2]
[347713439,1736077857774,-1127.93,8.767e-05,2]
[347713440,1736077857783,-500.0,8.767e-05,2]
[347713441,1736077857792,-500.0,8.767e-05,2]
[347713442,1736077857802,-929.99,8.767e-05,2]
[347713443,1736077857811,-1826.18,8.767e-05,2]
[347713444,1736077857820,-2522.13,8.767e-05,2]
[347713445,1736077857829,-960.74,8.767e-05,2]
[347713446,1736077857839,-691.4,8.767e-05,2]
[347713447,1736077857848,-1666.61,8.767e-05,2]
[347713448,1736077857858,-500.0,8.767e-05,2]
[347713449,1736077857867,-1167.04,8.767e-05,2]
[347713450,1736077857876,-991.36,8.767e-05,2]
[347713451,1736077857885,-520.34,8.767e-05,2]
[347713452,1736077857894,-500.0,8.767e-05,2]
[347713453,1736077857904,-500.0,8.767e-05,2]
[347713454,1736077857913,-500.0,8.767e-05,2]
[347713455,1736077857922,-500.0,8.767e-05,2]
[347713456,1736077857932,-1153.3597,8.788e-05,2]
[347713457,1736077857942,-1500.0,8.788e-05,2]
[347713458,1736077857951,-3940.2325,8.788e-05,2]
[347713459,1736077857960,-1798.03455922,8.798e-05,2]
[347713460,1736077857969,-1800.0,8.8e-05,3]
[347713461,1736077857979,-420.0,8.839e-05,2]
[347713462,1736077857988,-199.12957504,8.863e-05,2]
[347713463,1736077857997,-500.0,8.863e-05,2]
[347713464,1736077858007,-15743.7547898,8.882e-05,2]
[347713465,1736077858016,-686.07,8.887e-05,2]
[347713466,1736077858025,-500.0,8.887e-05,2]
[347713467,1736077858035,-6201732.45028291,8.888e-05,2]
[347713468,1736077858044,-300.0,8.9e-05,3]
[347713469,1736077858053,-186.73709841,8.9e-05,2]
[347713470,1736077858063,-7254.62416976,8.9e-05,2]
[347713471,1736077858072,-300.0,9e-05,3]
[347713472,1736077858081,-2004.38,9.014e-05,2]
[347713473,1736077858091,-436.94,9.014e-05,2]
[347713474,1736077858101,-500.0,9.024e-05,2]
[347713475,1736077858110,-1896.22,9.04e-05,2]
[347713476,1736077858119,-1465.16,9.04e-05,2]
[347713477,1736077858129,-2361.91,9.041e-05,2]
[347713478,1736077858140,-1674.92,9.041e-05,2]
[347713479,1736077858150,-500.0,9.041e-05,2]
[347713480,1736077858160,-1621.98,9.041e-05,2]
[347713481,1736077858169,-500.0,9.041e-05,2]
[347713482,1736077858179,-500.0,9.041e-05,2]
[347713483,1736077858188,-500.0,9.041e-05,2]
[347713484,1736077858197,-500.0,9.041e-05,2]
[347713485,1736077858206,-500.0,9.041e-05,2]
[347713486,1736077858215,-500.0,9.041e-05,2]
[347713487,1736077858224,-3386.48,9.041e-05,2]
[347713488,1736077858233,-500.0,9.041e-05,2]
[347713489,1736077858243,-625.63,9.041e-05,2]
[347713490,1736077858252,-172.16,9.041e-05,2]
[347713491,1736077858261,-503.47,9.041e-05,2]
[347713492,1736077858271,-500.0,9.041e-05,2]
[347713493,1736077858280,-500.0,9.041e-05,2]
[347713494,1736077858289,-4493.65,9.041e-05,2]
[347713495,1736077858298,-655.26,9.041e-05,2]
[347713496,1736077858308,-505.26,9.041e-05,2]
[347713497,1736077858317,-500.0,9.041e-05,2]
[347713498,1736077858326,-500.0,9.041e-05,2]
[347713499,1736077858335,-500.0,9.041e-05,2]
[347713500,1736077858345,-3455.18,9.041e-05,2]
[347713501,1736077858354,-500.0,9.041e-05,2]
[347713502,1736077858366,-500.0,9.041e-05,2]
[347713503,1736077858380,-324.51,9.041e-05,2]
[347713504,1736077858394,-500.0,9.041e-05,2]
[347713505,1736077858406,-500.0,9.041e-05,2]
[347713506,1736077858417,-500.0,9.041e-05,2]
[347713507,1736077858430,-500.0,9.041e-05,2]
[347713508,1736077858443,-500.0,9.041e-05,2]
[347713509,1736077858455,-500.0,9.041e-05,2]
[347713510,1736077858468,-500.0,9.041e-05,2]
[347713511,1736077858481,-503.65,9.041e-05,2]
[347713512,1736077858496,-500.0,9.041e-05,2]
[347713513,1736077858508,-2093.91,9.041e-05,2]
[347713514,1736077858519,-535.39,9.041e-05,2]
[347713515,1736077858530,-500.0,9.041e-05,2]
[347713516,1736077858542,-500.0,9.041e-05,2]
[347713517,1736077858555,-500.0,9.041e-05,2]
[347713518,1736077858568,-500.0,9.041e-05,2]
[347713519,1736077858582,-4909.36,9.041e-05,2]
[347713520,1736077858596,-500.0,9.041e-05,2]
[347713521,1736077858609,-500.0,9.041e-05,2]
[347713522,1736077858622,-768.45,9.041e-05,2]
[347713523,1736077858635,-500.0,9.041e-05,2]
[347713524,1736077858647,-501.86,9.041e-05,2]
[347713525,1736077858661,-660.06,9.041e-05,2]
[347713526,1736077858672,-500.0,9.041e-05,2]
[347713527,1736077858685,-500.0,9.041e-05,2]
[347713528,1736077858699,-1439.68,9.041e-05,2]
[347713529,1736077858711,-500.0,9.041e-05,2]
[347713530,1736077858724,-597.85,9.041e-05,2]
[347713531,1736077858736,-500.0,9.041e-05,2]
[347713532,1736077858750,-1447.38,9.041e-05,2]
[347713533,1736077858763,-500.0,9.041e-05,2]
[347713534,1736077858775,-500.0,9.041e-05,2]
[347713535,1736077858787,-617.4,9.041e-05,2]
[347713536,1736077858798,-500.0,9.041e-05,2]
[347713537,1736077858809,-890.36,9.041e-05,2]
[347713538,1736077858822,-500.0,9.041e-05,2]
[347713539,1736077858837,-897.02,9.041e-05,2]
[347713540,1736077858848,-500.0,9.041e-05,2]
[347713541,1736077858858,-500.0,9.041e-05,2]
[347713542,1736077858869,-514.55,9.041e-05,2]
[347713543,1736077858880,-713.57,9.041e-05,2]
[347713544,1736077858894,-500.0,9.041e-05,2]
[347713545,1736077858909,-606.82,9.041e-05,2]
[347713546,1736077858921,-500.0,9.041e-05,2]
[347713547,1736077858931,-500.0,9.041e-05,2]
[347713548,1736077858942,-500.0,9.041e-05,2]
[347713549,1736077858953,-500.0,9.041e-05,2]
[347713550,1736077858965,-757.44,9.041e-05,2]
[347713551,1736077858977,-500.0,9.041e-05,2]
[347713552,1736077858989,-1184.81,9.041e-05,2]
[347713553,1736077859002,-500.0,9.041e-05,2]
[347713554,1736077859014,-500.0,9.041e-05,2]
[347713555,1736077859026,-722.49,9.041e-05,2]
[347713556,1736077859037,-440.06,9.041e-05,2]
[347713557,1736077859048,-500.0,9.041e-05,2]
[347713558,1736077859059,-1641.6,9.041e-05,2]
[347713559,1736077859071,-758.18,9.041e-05,2]
[347713560,1736077859082,-564.09,9.041e-05,2]
[347713561,1736077859094,-2326.73,9.041e-05,2]
[347713562,1736077859104,-500.0,9.041e-05,2]
[347713563,1736077859116,-874.81,9.041e-05,2]
[347713564,1736077859128,-1135.34,9.041e-05,2]
[347713565,1736077859139,-1289.57,9.041e-05,2]
[347713566,1736077859152,-500.0,9.041e-05,2]
[347713567,1736077859164,-603.7,9.041e-05,2]
[347713568,1736077859175,-916.01,9.041e-05,2]
[347713569,1736077859187,-583.76,9.041e-05,2]
[347713570,1736077859199,-500.0,9.041e-05,2]
[347713571,1736077859210,-551.11,9.041e-05,2]
[347713572,1736077859221,-1685.45,9.041e-05,2]
[347713573,1736077859231,-1340.17,9.041e-05,2]
[347713574,1736077859243,-2464.65,9.041e-05,2]
[347713575,1736077859254,-582.22,9.041e-05,2]
[347713576,1736077859265,-900.6,9.041e-05,2]
[347713577,1736077859276,-1329.92,9.041e-05,2]
[347713578,1736077859287,-786.78,9.041e-05,2]
[347713579,1736077859297,-743.02,9.041e-05,2]
[347713580,1736077859309,-1147.49,9.041e-05,2]
[347713581,1736077859320,-500.0,9.041e-05,2]
[347713582,1736077859331,-690.8,9.041e-05,2]
[347713583,1736077859342,-500.0,9.041e-05,2]
[347713584,1736077859354,-597.29,9.041e-05,2]
[347713585,1736077859365,-527.65,9.041e-05,2]
[347713586,1736077859376,-657.19,9.041e-05,2]
[347713587,1736077859387,-500.0,9.041e-05,2]
[347713588,1736077859399,-1630.28,9.041e-05,2]
[347713589,1736077859409,-713.19,9.041e-05,2]
[347713590,1736077859423,-383.23,9.041e-05,2]
[347713591,1736077859436,-865.01,9.041e-05,2]
[347713592,1736077859447,-500.0,9.041e-05,2]
[347713593,1736077859459,-560.06,9.041e-05,2]
[347713594,1736077859470,-656.48,9.041e-05,2]
[347713595,1736077859480,-576.76327742,9.041e-05,2]
[347713596,1736077859493,-500.0,9.041e-05,2]
[347713597,1736077859504,-799.98,9.041e-05,2]
[347713598,1736077859515,-1370.84,9.041e-05,2]
[347713599,1736077859526,-500.0,9.041e-05,2]
[347713600,1736077859537,-500.0,9.041e-05,2]
[347713601,1736077859548,-720.23,9.041e-05,2]
[347713602,1736077859563,-1174.05,9.041e-05,2]
[347713603,1736077859573,-535.83,9.041e-05,2]
[347713604,1736077859584,-500.0,9.041e-05,2]
[347713605,1736077859595,-1100.99,9.041e-05,2]
[347713606,1736077859606,-500.0,9.041e-05,2]
[347713607,1736077859617,-500.0,9.041e-05,2]
[347713608,1736077859628,-742.07,9.041e-05,2]
[347713609,1736077859639,-846.77,9.041e-05,2]
[347713610,1736077859650,-1559.95,9.041e-05,2]
[347713611,1736077859661,-788.73,9.041e-05,2]
[347713612,1736077859672,-1389.11,9.041e-05,2]
[347713613,1736077859683,-500.0,9.041e-05,2]
[347713614,1736077859694,-2013.48,9.041e-05,2]
[347713615,1736077859705,-2906.9,9.041e-05,2]
[347713616,1736077859717,-500.0,9.041e-05,2]
[347713617,1736077859729,-500.0,9.041e-05,2]
[347713618,1736077859741,-500.0,9.041e-05,2]
[347713619,1736077859752,-1498.5,9.041e-05,2]
[347713620,1736077859762,-699.23,9.041e-05,2]
[347713621,1736077859774,-1506.83,9.041e-05,2]
[347713622,1736077859785,-770.93,9.041e-05,2]
[347713623,1736077859797,-1218.28,9.041e-05,2]
[347713624,1736077859808,-500.0,9.041e-05,2]
[347713625,1736077859821,-1089.33,9.041e-05,2]
[347713626,1736077859832,-500.0,9.041e-05,2]
[347713627,1736077859843,-500.0,9.041e-05,2]
[347713628,1736077859856,-820.66,9.041e-05,2]
[347713629,1736077859868,-500.0,9.041e-05,2]
[347713630,1736077859880,-632.38,9.041e-05,2]
[347713631,1736077859892,-500.0,9.041e-05,2]
[347713632,1736077859903,-686.96,9.041e-05,2]
[347713633,1736077859916,-645.18,9.041e-05,2]
[347713634,1736077859927,-978.19,9.041e-05,2]
[347713635,1736077859938,-890.17,9.041e-05,2]
[347713636,1736077859949,-500.0,9.041e-05,2]
[347713637,1736077859962,-500.0,9.041e-05,2]
[347713638,1736077859975,-500.0,9.041e-05,2]
[347713639,1736077859987,-744.13,9.041e-05,2]
[347713640,1736077859998,-594.69,9.041e-05,2]
[347713641,1736077860010,-2315.0,9.041e-05,2]
[347713642,1736077860023,-500.0,9.041e-05,2]
[347713643,1736077860035,-930.54,9.041e-05,2]
[347713644,1736077860046,-721.43,9.041e-05,2]
[347713645,1736077860057,-437.49537085,9.041e-05,2]
[347713646,1736077860068,-500.0,9.041e-05,2]
[347713647,1736077860079,-1252.67,9.041e-05,2]
[347713648,1736077860090,-500.0,9.041e-05,2]
[347713649,1736077860101,-500.0,9.041e-05,2]
[347713650,1736077860112,-2913.28,9.041e-05,2]
[347713651,1736077860123,-774.57,9.041e-05,2]
[347713652,1736077860134,-897.91,9.041e-05,2]
[347713653,1736077860146,-2177.81,9.041e-05,2]
[347713654,1736077860157,-511.93,9.041e-05,2]
[347713655,1736077860169,-2171.65,9.041e-05,2]
[347713656,1736077860181,-500.0,9.041e-05,2]
[347713657,1736077860192,-2317.89,9.041e-05,2]
[347713658,1736077860204,-867.55,9.041e-05,2]
[347713659,1736077860215,-527.01,9.041e-05,2]
[347713660,1736077860226,-803.4,9.041e-05,2]
[347713661,1736077860237,-1302.69,9.041e-05,2]
[347713662,1736077860248,-1086.66,9.041e-05,2]
[347713663,1736077860259,-749.15,9.041e-05,2]
[347713664,1736077860270,-565.13,9.041e-05,2]
[347713665,1736077860282,-856.06,9.041e-05,2]
[347713666,1736077860293,-1986.45,9.041e-05,2]
[347713667,1736077860304,-2363.84,9.041e-05,2]
[347713668,1736077860315,-623.49,9.041e-05,2]
[347713669,1736077860326,-764.85,9.041e-05,2]
[347713670,1736077860336,-500.0,9.041e-05,2]
[347713671,1736077860350,-500.0,9.041e-05,2]
[347713672,1736077860360,-727.71,9.041e-05,2]
[347713673,1736077860371,-1852.11,9.041e-05,2]
[347713674,1736077860385,-584.32,9.041e-05,2]
[347713675,1736077860396,-640.46,9.041e-05,2]
[347713676,1736077860407,-1550.64,9.041e-05,2]
[347713677,1736077860418,-1783.14,9.041e-05,2]
[347713678,1736077860429,-531.36,9.041e-05,2]
[347713679,1736077860440,-1213.26,9.041e-05,2]
[347713680,1736077860452,-500.0,9.041e-05,2]
[347713681,1736077860463,-500.0,9.041e-05,2]
[347713682,1736077860474,-1908.11,9.041e-05,2]
[347713683,1736077860485,-500.0,9.041e-05,2]
[347713684,1736077860498,-641.67,9.041e-05,2]
[347713685,1736077860509,-500.0,9.041e-05,2]
[347713686,1736077860520,-3065.63,9.041e-05,2]
[347713687,1736077860531,-3640.86,9.041e-05,2]
[347713688,1736077860542,-500.0,9.041e-05,2]
[347713689,1736077860553,-1070.96,9.041e-05,2]
[347713690,1736077860564,-500.0,9.041e-05,2]
[347713691,1736077860576,-500.0,9.041e-05,2]
[347713692,1736077860588,-578.08,9.041e-05,2]
[347713693,1736077860599,-1399.43,9.041e-05,2]
[347713694,1736077860611,-500.0,9.041e-05,2]
[347713695,1736077860623,-500.0,9.041e-05,2]
[347713696,1736077860634,-500.0,9.041e-05,2]
[347713697,1736077860644,-500.0,9.041e-05,2]
[347713698,1736077860656,-500.0,9.041e-05,2]
[347713699,1736077860666,-500.0,9.041e-05,2]
[347713700,1736077860677,-519.71,9.041e-05,2]
[347713701,1736077860688,-500.0,9.041e-05,2]
[347713702,1736077860698,-500.0,9.041e-05,2]
[347713703,1736077860709,-732.34,9.041e-05,2]
[347713704,1736077860720,-707.82,9.041e-05,2]
[347713705,1736077860730,-740.06,9.041e-05,2]
[347713706,1736077860741,-2098.99,9.041e-05,2]
[347713707,1736077860751,-500.0,9.041e-05,2]
[347713708,1736077860762,-796.45,9.041e-05,2]
[347713709,1736077860773,-500.0,9.041e-05,2]
[347713710,1736077860783,-6012.7,9.041e-05,2]
[347713711,1736077860794,-500.0,9.041e-05,2]
[347713712,1736077860804,-500.0,9.041e-05,2]
[347713713,1736077860815,-853.48,9.041e-05,2]
[347713714,1736077860826,-500.0,9.041e-05,2]
[347713715,1736077860836,-500.0,9.041e-05,2]
[347713716,1736077860847,-5593.14,9.041e-05,2]
[347713717,1736077860857,-2047.77,9.041e-05,2]
[347713718,1736077860868,-500.0,9.041e-05,2]
[347713719,1736077860879,-964.08,9.041e-05,2]
[347713720,1736077860890,-933.81,9.041e-05,2]
[347713721,1736077860900,-500.0,9.041e-05,2]
[347713722,1736077860911,-702.7,9.041e-05,2]
[347713723,1736077860922,-500.0,9.041e-05,2]
[347713724,1736077860933,-700.64,9.041e-05,2]
[347713725,1736077860944,-789.92,9.041e-05,2]
[347713726,1736077860954,-356.8812974,9.041e-05,2]
[347713727,1736077860964,-500.0,9.041e-05,2]
[347713728,1736077860975,-1141.75,9.041e-05,2]
[347713729,1736077860985,-500.0,9.041e-05,2]